bitfinex-derivatives/quotes_ETHF0:USTF0_20250422
["timestamp","ask_amount","ask_price","bid_price","bid_amount"]
[1745331366971,5.257,1652.0,1651.9,1.21046]
[1745331367171,8.529,1652.0,1651.9,1.21046]
[1745331367771,9.73944,1652.0,1651.8,4.41829]
[1745331367978,3.272,1651.9,1651.8,4.41829]
[1745331368173,5.257,1652.0,1651.9,1.21046]
[1745331368381,8.529,1652.0,1651.9,1.21046]
[1745331368671,5.257,1652.0,1651.9,1.21046]
[1745331368875,6.6781,1652.1,1651.9,3.2078]
[1745331369074,6.6781,1652.1,1652.0,4.56608]
[1745331369282,3.4796,1652.3,1652.2,1.21024]
[1745331369580,3.4796,1652.3,1652.0,4.56608]
[1745331369581,5.256,1652.4,1652.3,1.21016]
[1745331369878,6.46614,1652.4,1652.2,4.51678]
[1745331370079,3.3159,1652.3,1652.2,1.21018]
[1745331370776,5.256,1652.4,1652.3,1.21016]
[1745331370971,8.5719,1652.4,1652.3,1.21016]
[1745331371975,5.256,1652.4,1652.3,1.21016]
[1745331372382,5.256,1652.4,1652.3,4.41796]
[1745331372879,6.23142,1653.3,1652.6,3.02486]
[1745331373174,3.5002,1653.1,1653.0,1.20965]
[1745331374284,1.20965,1653.0,1652.9,1.20966]
[1745331374577,1.20968,1653.0,1652.9,1.20969]
[1745331374782,1.20972,1652.9,1652.8,0.00907935]
[1745331375084,3.5002,1652.9,1652.4,6.35492]
[1745331375269,8.7814,1652.8,1652.7,1.20985]
[1745331376079,13.4208,1652.8,1652.7,1.20985]
[1745331376279,1.20987,1652.7,1652.6,1.21895935]
[1745331376477,3.3508,1652.7,1652.6,1.21895935]
[1745331376787,0.00898655,1652.9,1652.8,1.2098]
[1745331376978,5.26298655,1652.9,1652.8,1.2098]
[1745331377182,5.26298655,1652.9,1652.8,4.4841]
[1745331377477,0.00898655,1652.9,1652.8,4.4841]
[1745331379085,0.00898655,1652.9,1652.8,9.4841]
[1745331379289,3.3046,1653.3,1653.2,1.2095]
[1745331379488,92.352,1653.4,1653.3,1.20943]
[1745331379686,5.253,1653.4,1653.3,4.53273]
[1745331381578,5.253,1653.4,1653.2,4.41725]
[1745331381784,3.5164,1653.3,1653.2,3.2078]
[1745331381980,3.5164,1653.3,1653.0,3.2078]
[1745331382187,11.46999,1653.3,1652.9,3.3775]
[1745331382387,11.46999,1653.3,1653.0,3.5321]
[1745331382694,11.46997,1653.3,1653.0,4.7417]
[1745331382989,8.4608,1653.4,1653.2,3.2078]
[1745331382990,5.253,1653.4,1653.2,3.2078]
[1745331383389,3.5164,1653.3,1653.2,4.4173]
[1745331384286,5.253,1653.4,1653.2,3.2078]
[1745331384490,5.253,1653.4,1653.3,4.74153]
[1745331385585,5.253,1653.4,1653.2,3.2078]
[1745331385586,6.46237,1653.4,1653.2,4.41724]
[1745331385787,3.3891,1653.3,1653.2,4.41724]
[1745331385996,3.3891,1653.3,1653.1,1.20955]
[1745331386192,4.5349,1653.2,1653.0,4.41739]
[1745331386395,8.6411,1653.1,1652.8,9.6198]
[1745331386600,8.6411,1653.1,1653.0,4.41745]
[1745331386894,5.252,1653.1,1653.0,4.41745]
[1745331387290,10.252,1653.1,1652.7,3.2078]
[1745331387493,1.20986,1652.8,1652.6,0.00907935]
[1745331387794,12.0388,1652.7,1652.6,1.21901935]
[1745331388399,8.5534,1652.7,1652.6,1.21901935]
[1745331388785,14.76327,1652.7,1652.6,0.00907935]
[1745331389199,8.5534,1652.7,1652.6,1.21901935]
[1745331389390,9.76327,1652.7,1652.6,1.21901935]
[1745331389698,8.5534,1652.7,1652.6,1.21901935]
[1745331389896,3.3024,1652.7,1652.6,4.42681935]
[1745331390099,8.5534,1652.7,1652.6,4.42681935]
[1745331391501,5.251,1652.7,1652.6,4.42681935]
[1745331392299,6.46087,1652.7,1652.6,0.00907935]
[1745331392499,6.46087,1652.7,1652.4,3.2078]
[1745331392500,1.21014,1652.4,1652.2,3.2078]
[1745331392799,5.252,1652.3,1652.2,4.41804]
[1745331393102,8.7622,1652.3,1652.2,4.41804]
[1745331393501,5.252,1652.3,1652.2,4.41804]
[1745331393805,3.5102,1652.5,1652.4,1.21009]
[1745331394101,8.7622,1652.5,1652.4,1.21009]
[1745331394495,8.7622,1652.5,1652.4,4.41789]
[1745331394895,5.252,1652.5,1652.4,4.41789]
[1745331395104,6.66517935,1652.6,1652.5,1.21002]
[1745331395300,5.26107935,1652.6,1652.5,4.58242]
[1745331395907,6.6692,1652.9,1652.8,1.2098]
[1745331396211,5.246,1653.2,1653.1,1.20952]
[1745331396413,3.2018,1653.1,1652.8,3.2078]
[1745331396612,6.45553,1653.2,1652.8,6.23229]
[1745331396810,3.5334,1653.1,1653.0,1.20958]
[1745331397213,5.246,1653.2,1653.1,1.20958]
[1745331397416,5.246,1653.2,1653.1,4.54768]
[1745331397914,5.246,1653.2,1653.1,1.20958]
[1745331398314,8.7794,1653.2,1653.1,1.20958]
[1745331398516,14.98893,1653.2,1653.0,4.41741]
[1745331398709,1.20958,1653.1,1652.8,3.21687935]
[1745331398915,3.5334,1653.0,1652.8,3.21687935]
[1745331399117,8.777,1652.9,1652.8,1.21886935]
[1745331399514,12.3104,1652.9,1652.8,1.21886935]
[1745331400418,18.52012,1652.9,1652.8,0.00907935]
[1745331400710,12.3104,1652.9,1652.8,1.21887935]
[1745331401712,17.3104,1652.9,1652.8,0.00907935]
[1745331401919,17.3104,1652.9,1652.8,1.21887935]
[1745331401920,12.3104,1652.9,1652.8,1.21887935]
[1745331402109,13.52012,1652.9,1652.8,1.21887935]
[1745331402313,12.3104,1652.9,1652.8,1.21887935]
[1745331403115,13.52012,1652.9,1652.8,1.21887935]
[1745331403311,13.52012,1652.9,1652.8,0.00907935]
[1745331404112,1.20994,1652.7,1652.4,1.21006]
[1745331404415,9.86184,1652.6,1652.3,4.4179]
[1745331404612,3.3879,1652.5,1652.3,4.4179]
[1745331404814,7.99152,1652.5,1652.3,4.4179]
[1745331405016,7.99152,1652.5,1652.3,3.2078]
[1745331405017,6.7815,1652.5,1652.3,3.2078]
[1745331405219,3.3936,1652.4,1652.3,3.2078]
[1745331405404,4.60369,1652.4,1652.3,3.2078]
[1745331406513,1.21016,1652.3,1652.2,0.00907935]
[1745331406710,9.87076,1652.3,1652.2,0.00907935]
[1745331407412,9.87076,1652.3,1652.2,1.21931935]
[1745331407612,9.87076,1652.3,1652.2,4.47821935]
[1745331407819,9.87076,1652.3,1652.2,0.00907935]
[1745331408205,1.21016,1652.3,1652.2,0.00907935]
[1745331408406,6.45716,1652.3,1652.2,0.00907935]
[1745331409217,1.21053,1651.8,1651.7,4.41836]
[1745331409413,5.247,1651.8,1651.6,3.3154]
[1745331409617,3.02682,1651.6,1651.2,4.41874]
[1745331409922,1.2109,1651.3,1651.2,1.21097]
[1745331410217,7.5329,1651.3,1651.2,1.21097]
[1745331410716,6.322,1651.3,1651.1,3.32447935]
[1745331410918,6.45797,1651.2,1651.1,4.53545935]
[1745331411112,6.45797,1651.2,1651.1,0.00907935]
[1745331411422,9.77337,1651.2,1651.1,0.00907935]
[1745331412213,16.09537,1651.2,1651.1,0.00907935]
[1745331413013,1.21112,1651.0,1650.9,3.3154]
[1745331413314,1.21129,1650.8,1650.7,1.21129]
[1745331413513,5.248,1650.8,1650.7,1.21129]
[1745331413716,5.248,1650.8,1650.6,4.41916]
[1745331413924,1.21147,1650.6,1650.5,1.21147]
[1745331414122,1.21147,1650.6,1650.5,1.22054935]
[1745331414317,1.21138,1650.7,1650.5,0.00907935]
[1745331414621,4.73331,1650.6,1650.5,3.34357935]
[1745331414821,4.73331,1650.6,1650.5,4.55505935]
[1745331415323,11.05531,1650.6,1650.5,1.22055935]
[1745331415516,6.322,1650.6,1650.5,1.22055935]
[1745331416018,6.322,1650.6,1650.4,3.2078]
[1745331416218,6.322,1650.6,1650.1,3.39]
[1745331416219,11.71364,1650.5,1650.1,3.39]
[1745331416519,3.02894,1650.4,1650.0,4.4196]
[1745331416718,3.4359,1650.3,1650.0,4.4196]
[1745331416921,1.21178,1650.1,1650.0,4.4196]
[1745331417518,4.64768,1650.1,1650.0,4.4196]
[1745331417724,4.64768,1650.1,1650.0,3.2078]
[1745331418226,1.21185,1650.0,1649.9,0.00907935]
[1745331418522,1.21214,1649.6,1649.5,3.2078]
[1745331418728,3.03073,1649.4,1649.0,11.91166259]
[1745331418925,3.2078,1649.1,1649.0,11.91166259]
[1745331419220,4.42031,1649.1,1649.0,11.91166259]
[1745331419419,9.42031,1649.1,1649.0,11.91166259]
[1745331419622,9.42031,1649.1,1648.9,15.51042726]
[1745331419623,1.21258,1649.0,1648.9,0.00907935]
[1745331419824,9.64838,1649.0,1648.9,0.00907935]
[1745331420019,4.64838,1649.0,1648.9,0.00907935]
[1745331420214,1.21288,1648.6,1648.5,7.85867974]
[1745331420414,9.67368,1648.6,1648.5,7.85867974]
[1745331420819,13.10948,1648.6,1648.5,7.85867974]
[1745331421015,5.253,1648.6,1648.5,9.07162974]
[1745331421222,5.253,1648.6,1648.5,12.45312974]
[1745331422221,5.253,1648.6,1648.5,17.45312974]
[1745331422727,5.253,1648.6,1648.5,11.24017974]
[1745331423027,5.253,1648.6,1648.5,12.45312974]
[1745331423325,6.46688,1648.6,1648.5,11.24017974]
[1745331423620,5.254,1648.6,1648.5,7.85867974]
[1745331423824,5.254,1648.6,1648.5,1.21295]
[1745331424027,5.254,1648.6,1648.5,4.59445]
[1745331425528,92.408,1648.7,1648.5,4.59445]
[1745331425529,5.254,1649.1,1649.0,1.21258]
[1745331425924,92.44,1649.4,1649.0,5.0]
[1745331426128,3.2078,1649.5,1649.2,3.03102]
[1745331426431,3.2078,1649.5,1649.4,1.21229]
[1745331426919,3.2078,1649.5,1649.4,6.21229]
[1745331427123,5.252,1649.6,1649.5,1.21222]
[1745331427319,5.252,1649.6,1649.5,4.70722]
[1745331427320,5.26107935,1649.6,1649.5,4.70722]
[1745331427724,5.26107935,1649.6,1649.5,9.70722]
[1745331427927,5.26107935,1649.6,1649.5,4.70722]
[1745331428120,5.26107935,1649.6,1649.5,16.02922]
[1745331428316,0.00907935,1649.6,1649.5,16.02922]
[1745331428521,5.252,1650.1,1650.0,1.21185]
[1745331429133,5.252,1650.1,1650.0,7.53385]
[1745331429929,5.252,1650.7,1650.3,3.02901]
[1745331430123,5.252,1650.7,1650.6,1.21141]
[1745331430526,92.461,1651.2,1651.1,1.21104]
[1745331430832,97.713,1651.2,1651.1,1.21104]
[1745331431223,92.461,1651.2,1651.1,1.21104]
[1745331431429,97.713,1651.2,1651.1,1.21104]
[1745331431736,5.252,1651.2,1651.1,1.21104]
[1745331432038,5.252,1651.2,1651.1,4.47714]
[1745331432721,5.252,1651.2,1651.1,1.21104]
[1745331433232,11.574,1651.2,1651.1,1.21104]
[1745331433423,14.9227,1651.2,1651.0,1.22013935]
[1745331433624,3.2078,1651.1,1651.0,1.22013935]
[1745331433825,6.5565,1651.1,1651.0,1.22013935]
[1745331434225,12.8785,1651.1,1651.0,1.22013935]
[1745331434425,17.8785,1651.1,1650.3,3.02908]
[1745331434627,3.2078,1650.6,1650.2,3.02924]
[1745331434832,5.25,1650.5,1650.4,1.21156]
[1745331435135,11.572,1650.5,1650.2,3.3201]
[1745331435430,3.3487,1650.4,1649.9,3.02966]
[1745331435629,3.2078,1650.1,1649.7,3.2078]
[1745331435827,5.249,1650.0,1649.9,1.2119]
[1745331437225,0.00907935,1650.3,1650.2,1.2117]
[1745331437435,9.35e-06,1650.3,1650.2,6.2117]
[1745331437927,9.35e-06,1650.3,1650.2,1.2117]
[1745331438130,6.32200935,1650.3,1650.2,1.2117]
[1745331438529,11.57200935,1650.3,1650.2,1.2117]
[1745331438828,11.32200935,1650.3,1650.0,1.21182]
[1745331439036,11.9427,1650.2,1650.0,1.21182]
[1745331439334,1.2118,1650.1,1649.8,3.2108]
[1745331439541,3.4021,1650.0,1649.9,1.21192]
[1745331440039,1.21178,1650.1,1650.0,1.21182]
[1745331440231,4.61395,1650.0,1649.8,4.42274]
[1745331440433,6.6099,1650.0,1649.9,1.21192]
[1745331440631,11.8599,1650.0,1649.9,1.21192]
[1745331442046,8.6521,1650.0,1649.9,1.21192]
[1745331442339,5.25,1650.0,1649.9,1.21192]
[1745331442740,8.5902,1650.0,1649.9,1.21192]
[1745331442938,3.3402,1650.0,1649.9,1.21192]
[1745331443138,8.5902,1650.0,1649.9,1.21192]
[1745331443340,8.5902,1650.0,1649.8,1.21195]
[1745331443535,11.798,1650.0,1649.7,3.03925935]
[1745331443833,4.4198,1649.8,1649.7,0.00907935]
[1745331444338,9.5298,1649.8,1649.7,1.22114935]
[1745331444942,12.87,1649.8,1649.7,1.22114935]
[1745331445142,12.76,1649.8,1649.7,1.22114935]
[1745331445439,11.548,1649.8,1649.7,1.22114935]
[1745331445943,6.548,1649.8,1649.7,1.22114935]
[1745331447229,7.76,1649.8,1649.7,1.22114935]
[1745331447542,1.21221,1649.6,1649.4,1.21223]
[1745331447747,9.35e-06,1650.3,1649.5,3.2078]
[1745331447938,5.25100935,1650.3,1650.2,1.2117]
[1745331448837,8.59070935,1650.3,1650.2,1.2117]
[1745331449534,8.59070935,1650.3,1650.2,4.5308]
[1745331449936,8.59070935,1650.3,1650.1,0.00907935]
[1745331450144,4.4195,1650.2,1650.1,0.00907935]
[1745331450439,4.5514,1650.2,1650.1,0.00907935]
[1745331450634,7.7592,1650.2,1650.1,0.00907935]
[1745331450833,12.7592,1650.2,1650.1,0.00907935]
[1745331451035,1.21198,1649.9,1649.8,1.212]
[1745331451234,1.21201,1649.8,1649.7,1.21202]
[1745331451438,3.3397,1649.8,1649.5,3.3191]
[1745331451741,3.3397,1649.8,1649.7,1.21207]
[1745331452342,1.21207,1649.7,1649.6,0.00907935]
[1745331452532,6.5475,1649.8,1649.0,3.2078]
[1745331452533,11.5475,1649.8,1649.0,3.2078]
[1745331452738,11.5475,1649.8,1649.1,1.21245]
[1745331452739,1.21244,1649.2,1649.1,1.21245]
[1745331452933,5.25,1649.3,1648.9,3.2078]
[1745331453132,1.21273,1648.8,1648.7,1.21275]
[1745331453339,5.251,1648.8,1648.6,1.21281]
[1745331453537,3.2229,1648.7,1648.6,1.21281]
[1745331453936,5.251,1648.8,1648.6,1.21281]
[1745331453937,0.00907935,1648.9,1648.8,1.21273]
[1745331454338,0.00907935,1648.9,1648.8,6.21273]
[1745331455137,0.00907935,1648.9,1648.8,1.21273]
[1745331455845,0.00907935,1648.9,1648.7,7.53479]
[1745331456038,0.00907935,1648.9,1648.7,7.53475]
[1745331456039,5.251,1648.8,1648.7,7.53475]
[1745331456248,8.6339,1648.8,1648.7,1.21275]
[1745331456840,8.6200054,1648.8,1648.7,1.21275]
[1745331457244,14.9420054,1648.8,1648.5,0.00604356]
[1745331457541,18.1498054,1648.8,1648.7,1.21281]
[1745331457745,6.322,1648.8,1648.7,1.21281]
[1745331458248,3.3072,1648.8,1648.7,1.21281]
[1745331458753,3.3072,1648.8,1648.6,4.40534]
[1745331458951,3.3072,1648.8,1648.6,3.1925]
[1745331459251,4.51994,1648.8,1648.5,0.00604356]
[1745331459437,4.51994,1648.8,1648.6,1.21287]
[1745331459643,4.51994,1648.8,1648.5,0.00604356]
[1745331459644,3.3072,1648.8,1648.7,1.21281]
[1745331460542,14.8792,1648.8,1648.7,1.21281]
[1745331460742,11.572,1648.8,1648.7,1.21281]
[1745331461144,0.00907935,1648.9,1648.8,1.21273]
[1745331461350,5.25907935,1648.9,1648.8,4.42053]
[1745331462346,0.00907935,1648.9,1648.8,1.21273]
[1745331462649,0.00907935,1648.9,1648.8,4.42053]
[1745331464151,0.00907935,1648.9,1648.8,1.21273]
[1745331464345,3.33667935,1648.9,1648.8,1.21273]
[1745331468354,1.21275,1648.8,1648.7,1.21273]
[1745331468750,6.54447935,1648.9,1648.8,1.21273]
[1745331468952,11.79547935,1648.9,1648.8,1.21273]
[1745331469149,8.58767935,1648.9,1648.8,1.21273]
[1745331469545,9.80033935,1648.9,1648.8,1.21273]
[1745331470144,8.58767935,1648.9,1648.8,1.21273]
[1745331470346,5.26007935,1648.9,1648.8,1.21273]
[1745331471253,8.48587935,1648.9,1648.8,1.21273]
[1745331471652,5.26007935,1648.9,1648.8,1.21273]
[1745331472949,0.00907935,1648.9,1648.8,4.42053]
[1745331473151,5.26107935,1648.9,1648.8,4.42053]
[1745331473953,95.8175,1649.3,1648.8,14.27147]
[1745331474154,6.6062,1649.4,1649.3,1.21236]
[1745331474155,5.252,1649.4,1649.3,1.21236]
[1745331475255,5.252,1649.4,1649.3,7.53436]
[1745331475759,0.00907935,1649.5,1649.4,1.21229]
[1745331475955,0.00907935,1649.5,1649.4,4.40999]
[1745331476258,0.00907935,1649.5,1649.4,7.61779]
[1745331477269,5.251,1650.0,1649.9,1.21192]
[1745331477560,5.251,1650.3,1650.2,1.2117]
[1745331477868,9.74854,1650.3,1649.8,6.23774]
[1745331478157,8.5369,1650.3,1650.2,1.2117]
[1745331478961,5.251,1650.3,1650.2,1.2117]
[1745331479159,5.26007935,1650.4,1650.3,1.21163]
[1745331480661,3.65365935,1650.4,1650.3,1.21163]
[1745331480863,5.25,1650.7,1650.6,1.21141]
[1745331481253,11.572,1650.7,1650.6,1.21141]
[1745331481864,11.572,1650.7,1650.2,6.5816]
[1745331482162,6.4713,1650.6,1650.4,1.21149]
[1745331482361,6.4713,1650.6,1650.5,1.21148]
[1745331482657,1.21165,1650.3,1650.1,1.21175]
[1745331482857,8.5135,1650.2,1649.9,0.00907935]
[1745331483060,5.25,1650.1,1649.9,0.00907935]
[1745331483262,7.68315,1650.0,1649.9,0.00907935]
[1745331483457,4.47535,1650.0,1649.9,0.00907935]
[1745331483763,9.47535,1650.0,1649.9,0.00907935]
[1745331483966,12.68315,1650.0,1649.9,0.00907935]
[1745331484261,30.31109966,1650.0,1649.3,3.2078]
[1745331484463,30.31109966,1650.0,1649.1,5.99732]
[1745331484464,3.2078,1649.6,1649.2,6.13472]
[1745331484650,8.5125,1649.5,1649.2,3.1037]
[1745331484853,6.46134,1649.4,1649.2,1.21241]
[1745331485062,2.9805,1649.3,1649.2,1.21241]
[1745331485263,2.9805,1649.3,1649.1,3.2078]
[1745331485562,2.9805,1649.3,1649.2,1.21244]
[1745331485761,5.25807935,1649.4,1649.3,1.21236]
[1745331485966,9.45086935,1649.4,1649.2,4.2387]
[1745331486261,11.41127935,1649.4,1649.3,1.21236]
[1745331486453,12.62356935,1649.4,1649.3,1.21236]
[1745331486654,1.21238,1649.3,1649.1,0.00907935]
[1745331486864,4.19294,1649.2,1649.1,0.00907935]
[1745331487258,4.19294,1649.2,1649.1,1.22158935]
[1745331487658,2.9805,1649.2,1649.1,1.22158935]
[1745331488165,10.51494,1649.2,1649.1,0.00907935]
[1745331488554,15.51494,1649.2,1649.1,0.00907935]
[1745331488769,10.51494,1649.2,1649.1,0.00907935]
[1745331489261,4.19294,1649.2,1649.1,0.00907935]
[1745331489857,2.9805,1649.2,1649.1,1.22158935]
[1745331490261,0.00907935,1649.4,1649.3,1.21236]
[1745331490963,3.25807935,1649.4,1649.3,1.21236]
[1745331491163,0.00907935,1649.4,1649.3,1.21236]
[1745331491358,0.00907935,1649.4,1649.3,6.21236]
[1745331491666,0.00907935,1649.4,1649.3,1.21236]
[1745331492466,0.00907935,1649.4,1649.3,6.21236]
[1745331492962,5.23892065,1649.5,1649.4,1.21229]
[1745331493262,5.23892065,1649.5,1649.4,7.54649]
[1745331493660,3.0054,1649.8,1649.7,1.21207]
[1745331493861,5.247,1649.9,1649.8,1.212]
[1745331494966,5.247,1650.5,1650.4,1.21153]
[1745331495158,14.5219,1650.5,1650.4,1.21153]
[1745331495359,15.73338,1650.5,1650.3,1.21158]
[1745331495559,1.21156,1650.4,1650.2,4.32786]
[1745331495770,2.9529,1650.4,1650.3,1.21163]
[1745331496278,5.25607935,1650.5,1650.2,3.12527935]
[1745331496464,8.20897935,1650.5,1650.2,0.00907935]
[1745331496768,1.21163,1650.3,1650.2,0.00907935]
[1745331497161,10.48543,1650.3,1650.2,0.00907935]
[1745331497964,9.2738,1650.3,1650.2,1.22077935]
[1745331498760,1.21186,1650.0,1649.8,1.21196]
[1745331498968,8.1978,1649.9,1649.8,1.21196]
[1745331499375,5.246,1649.9,1649.8,1.21196]
[1745331499763,6.322,1650.0,1649.9,1.21192]
[1745331500078,6.31292065,1650.0,1649.9,4.29512]
[1745331500270,9.66552,1650.2,1650.1,1.21178]
[1745331500471,9.66552,1650.2,1650.0,1.21182]
[1745331500870,9.66554,1650.2,1650.0,1.21183]
[1745331501168,14.7758,1650.2,1650.1,1.21178]
[1745331501357,12.7797,1650.2,1650.1,1.21178]
[1745331501669,15.9875,1650.2,1650.1,1.21178]
[1745331501860,11.568,1650.2,1649.7,3.03922935]
[1745331502056,4.31512,1650.1,1649.9,1.21187]
[1745331502264,4.31512,1650.1,1650.0,1.21185]
[1745331502458,3.1033,1650.1,1650.0,1.21185]
[1745331502862,4.31508,1650.1,1650.0,1.21185]
[1745331503263,4.31508,1650.1,1649.8,3.0813]
[1745331503264,9.4253,1650.1,1649.8,3.0813]
[1745331503466,10.63711,1650.1,1650.0,1.21185]
[1745331503659,1.21186,1650.0,1649.9,1.21186]
[1745331503867,1.212,1649.8,1649.7,1.22112935]
[1745331504070,6.458,1649.8,1649.7,0.00907935]
[1745331504569,9.76487644,1649.8,1649.7,0.00907935]
[1745331504758,12.85457644,1649.8,1649.7,0.00907935]
[1745331505166,19.17657786,1649.8,1649.7,0.00907935]
[1745331506370,1.21229,1649.4,1649.3,4.19822]
[1745331506571,1.21229,1649.4,1649.3,1.21232]
[1745331506766,14.61439,1649.5,1649.0,3.1229]
[1745331506967,1.21242,1649.3,1649.2,1.2124]
[1745331507469,2.951,1649.4,1649.3,1.21236]
[1745331507662,2.96007935,1649.4,1649.3,1.21236]
[1745331507863,0.00907935,1649.4,1649.3,1.21236]
[1745331508664,1.21239,1649.3,1649.2,1.21238]
[1745331508873,0.00907935,1649.4,1649.3,1.21236]
[1745331509078,6.46736935,1649.4,1649.3,1.21236]
[1745331509269,1.21244,1649.2,1649.1,0.00907935]
[1745331509468,1.21266,1648.9,1648.8,1.21273]
[1745331509663,1.21273,1648.8,1648.7,4.23945]
[1745331510073,6.45872,1648.9,1648.8,1.21273]
[1745331510274,5.246,1648.9,1648.8,1.21273]
[1745331510476,5.246,1648.9,1648.7,6.2345]
[1745331510677,1.21273,1648.8,1648.7,4.24852935]
[1745331510879,1.21273,1648.8,1648.7,0.00907935]
[1745331511073,1.21303,1648.4,1648.3,4.42086]
[1745331511279,6.46003,1648.4,1648.3,4.23976]
[1745331511464,5.247,1648.4,1648.3,4.23976]
[1745331514577,1.2131,1648.3,1648.2,0.00604356]
[1745331514775,6.46007,1648.4,1648.2,4.09707356]
[1745331514967,6.46007,1648.4,1648.2,2.88394356]
[1745331515173,5.247,1648.4,1648.3,1.2131]
[1745331515678,5.247,1648.4,1648.2,4.09707356]
[1745331515869,5.247,1648.4,1648.2,0.00604356]
[1745331516384,1.2131,1648.3,1648.2,1.21920356]
[1745331516885,3.03301,1648.2,1647.5,3.03423]
[1745331517081,3.2078,1647.9,1647.7,4.16847751]
[1745331517283,5.246,1647.8,1647.7,4.16847751]
[1745331517678,5.246,1647.8,1647.7,1.21354]
[1745331518074,5.246,1647.8,1647.7,6.21354]
[1745331518998,5.246,1647.8,1647.7,1.21354]
[1745331519301,8.4538,1647.8,1647.7,1.21354]
[1745331519486,8.4538,1647.8,1647.6,1.21355]
[1745331519902,8.4538,1647.8,1647.7,1.21354]
[1745331520099,9.66728,1647.8,1647.6,1.21356]
[1745331520287,8.4538,1647.8,1647.7,1.21354]
[1745331521299,6.1628,1648.1,1648.0,1.21332]
[1745331521501,11.4098,1648.1,1648.0,1.21332]
[1745331522201,8.4548,1648.1,1648.0,1.21332]
[1745331523001,9.66805,1648.1,1648.0,1.21332]
[1745331523197,8.4548,1648.1,1648.0,1.21332]
[1745331523595,5.247,1648.1,1648.0,1.21332]
[1745331524201,8.4548,1648.1,1648.0,1.21332]
[1745331524403,5.247,1648.1,1648.0,1.21332]
[1745331524803,0.00907935,1648.5,1648.1,3.0331]
[1745331525002,0.00214686,1648.5,1648.4,1.21303]
[1745331525506,0.00214686,1648.5,1648.3,1.21306]
[1745331525708,3.2078,1648.4,1648.2,1.21315]
[1745331526013,0.00214686,1648.5,1648.1,3.03312]
[1745331526304,8.4558,1648.4,1648.3,1.2131]
[1745331526696,3.20994686,1648.5,1648.4,1.21303]
[1745331526897,8.45794686,1648.5,1648.4,1.21303]
[1745331527099,11.58584686,1648.5,1648.4,1.21303]
[1745331527300,5.25014686,1648.5,1648.4,1.21303]
[1745331527605,5.25014686,1648.5,1648.4,6.21303]
[1745331528000,5.25014686,1648.5,1648.4,1.21303]
[1745331528302,5.25014686,1648.5,1648.4,4.42083]
[1745331528500,5.25014686,1648.5,1648.4,1.21303]
[1745331531705,8.42064686,1648.5,1648.4,1.21303]
[1745331532411,5.25014686,1648.5,1648.4,1.21303]
[1745331534414,8.12364686,1648.5,1648.4,1.21303]
[1745331537811,3.99043686,1648.5,1648.4,1.21303]
[1745331538114,3.2078,1648.8,1648.7,1.21281]
[1745331538115,5.247,1648.8,1648.7,1.21281]
[1745331539509,8.3284,1648.8,1648.7,1.21281]
[1745331540816,8.3284,1648.8,1648.6,1.21283]
[1745331540817,1.21281,1648.7,1648.6,1.21283]
[1745331541018,13.55131,1648.7,1648.5,1.21289]
[1745331541314,12.3385,1648.7,1648.6,1.21288]
[1745331541916,13.55131,1648.7,1648.6,1.21288]
[1745331542117,17.3385,1648.7,1648.2,3.03293]
[1745331542412,1.21294,1648.6,1648.5,1.21295]
[1745331542619,6.2129,1648.6,1648.5,1.21295]
[1745331543012,92.54907935,1648.9,1648.6,1.21288]
[1745331543213,3.73893,1648.7,1648.6,1.21288]
[1745331543819,2.36597,1648.7,1648.6,6.21288]
[1745331544016,2.36597,1648.7,1648.6,1.21288]
[1745331545019,2.36597,1648.7,1648.6,1.07498425]
[1745331545214,5.31217,1648.7,1648.6,1.07498425]
[1745331546225,1.21288,1648.6,1648.5,1.2129]
[1745331546428,10.39298,1648.6,1648.5,1.2129]
[1745331546615,1.21297,1648.5,1648.1,9.12679249]
[1745331546822,11.4614,1648.4,1648.1,0.00693249]
[1745331547025,4.42097,1648.2,1648.1,1.22018249]
[1745331547214,4.42097,1648.2,1648.1,0.00693249]
[1745331548318,4.42097,1648.2,1648.1,1.22018249]
[1745331548519,3.2078,1648.2,1648.1,1.22018249]
[1745331549221,3.2078,1648.4,1648.1,1.22018249]
[1745331549527,8.3258,1648.3,1648.2,1.21317]
[1745331549829,12.7467,1648.3,1648.2,1.21317]
[1745331550024,1.21355,1647.7,1647.4,3.03439]
[1745331550221,11.5336,1647.6,1647.5,1.21369]
[1745331551329,11.5336,1647.6,1647.4,0.00214686]
[1745331551525,1.21369,1647.5,1647.4,0.00214686]
[1745331551831,1.21378,1647.4,1647.3,1.2138]
[1745331552329,1.21378,1647.4,1647.1,1.21392]
[1745331552330,6.2052,1647.4,1647.1,1.21392]
[1745331552631,5.245,1647.3,1647.2,1.21391]
[1745331552930,8.2424,1647.3,1647.2,1.21391]
[1745331553338,3.2078,1647.4,1647.3,1.21384]
[1745331553635,8.44586751,1647.4,1647.3,1.21384]
[1745331553821,5.245,1647.4,1647.3,1.21384]
[1745331554230,5.245,1647.4,1647.3,7.53584]
[1745331554431,8.4528,1647.4,1647.3,7.53584]
[1745331554633,8.4528,1647.4,1647.3,6.322]
[1745331554928,11.4502,1647.4,1647.3,6.322]
[1745331555129,11.4502,1647.4,1647.2,1.21385]
[1745331555325,11.4502,1647.4,1647.3,1.21384]
[1745331555530,8.4528,1647.4,1647.3,1.21384]
[1745331555831,5.245,1647.4,1647.3,1.21384]
[1745331556020,5.245,1647.4,1647.3,6.21384]
[1745331556223,6.1821,1647.6,1647.5,1.21369]
[1745331556527,8.2193,1647.6,1647.5,1.21369]
[1745331557026,97.777,1648.0,1647.7,3.03383]